fUSD/lending_fUSD_20240329
["ID","MTS","AMOUNT","RATE_DAILY","PERIOD"]
[320930472,1711715492899,-4993.77,0.0006096,6]
[320930473,1711715492910,-4993.77,0.0006096,6]
[320930474,1711715492919,-1009.3,0.00060975,120]
[320930475,1711715492930,-3652.53529152,0.00060995,120]
[320930476,1711715492944,-30043.24692321,0.00060995,120]
[320930477,1711715493163,-563.2,0.00052876,120]
[320930478,1711715493182,-500.0,0.00054795,120]
[320930479,1711715493193,-1829.73810707,0.00060995,120]
[320930480,1711715493441,-157.0,0.000499,7]
[320930481,1711715493450,-563.2,0.0005315,120]
[320930482,1711715493459,-439.73427128,0.00053424,120]
[320930483,1711715493472,-123.46572872,0.00053424,120]
[320930484,1711715493481,-563.2,0.00053698,120]
[320930485,1711715493495,-563.2,0.00053972,120]
[320930486,1711715493504,-103.64240033,0.00054246,120]
[320930487,1711715493516,-459.55759967,0.00054246,120]
[320930488,1711715493525,-563.2,0.0005452,120]
[320930489,1711715493534,-563.2,0.00054794,120]
[320930490,1711715493544,-500.0,0.00054795,120]
[320930491,1711715493553,-500.0,0.00054795,120]
[320930492,1711715493562,-500.0,0.00054795,120]
[320930493,1711715493571,-157.35449831,0.00054795,120]
[320930494,1711715493582,-342.64550169,0.00054795,120]
[320930495,1711715493592,-500.0,0.00054795,120]
[320930496,1711715493604,-500.0,0.00054795,120]
[320930497,1711715493613,-563.2,0.00055068,120]
[320930498,1711715493623,-4365.55449831,0.00060995,120]
[320930499,1711715493640,-563.2,0.00055342,120]
[320930500,1711715493649,-97934.0504637,0.00060995,120]
[320930501,1711715493659,-150.0,0.00061,120]
[320930502,1711715493668,-350.0,0.00061,120]
[320930503,1711715493677,-260.0,0.00061,120]
[320930504,1711715493686,-460.0,0.00061,115]
[320930505,1711715493695,-3088.37126978,0.00061014,120]
[320930506,1711715493704,-1934.20250452,0.00061014,120]
[320930507,1711715493713,-787.03857535,0.00061014,120]
[320930508,1711715493722,-1830.81952713,0.00061014,120]
[320930509,1711715493731,-160.0,0.00061051,28]
[320930510,1711715493744,-157.032919,0.00061148,120]
[320930511,1711715493753,-151.0,0.00061233,120]
[320930512,1711715493762,-240.64720123,0.00061251,120]
[320930513,1711715493771,-308.43333333,0.0006126,120]
[320930514,1711715493780,-1000.0,0.000613,120]
[320930515,1711715493789,-157.032921,0.00061348,120]
[320930516,1711715493799,-157.032911,0.00061448,119]
[320930517,1711715493808,-250.0,0.000615,120]
[320930518,1711715493817,-428.17585573,0.000615,33]
[320930519,1711715493827,-460.0,0.000615,116]
[320930520,1711715493837,-3088.37126978,0.00061512,120]
[320930521,1711715493847,-1934.20250452,0.00061512,120]
[320930522,1711715493856,-787.03857535,0.00061512,120]
[320930523,1711715493865,-1830.81952713,0.00061512,120]
[320930524,1711715493874,-46063.02,0.00061563,6]
[320930525,1711715493884,-36049.41,0.00061563,6]
[320930526,1711715493892,-41445.24,0.00061563,6]
[320930527,1711715493902,-28494.7,0.00061563,6]
[320930528,1711715493911,-6001.52,0.00061563,6]
[320930529,1711715493920,-46063.02,0.00061563,6]
[320930530,1711715493930,-29220.94,0.00061563,6]
[320930531,1711715493939,-19069.66,0.00061563,6]
[320930532,1711715493949,-46063.02,0.00061563,6]
[320930533,1711715493959,-548.91,0.00061563,6]
[320930534,1711715493968,-46063.02,0.00061563,6]
[320930535,1711715493977,-150.0,0.00061616,10]
[320930536,1711715493987,-1412.38,0.00061643,120]
[320930537,1711715493997,-300.0,0.000617,120]
[320930538,1711715494007,-299.99999901,0.000617,120]
[320930539,1711715494017,-509.154794,0.000617,120]
[320930540,1711715494027,-161.032921,0.00061748,120]
[320930541,1711715494037,-308.43333333,0.00061863,120]
[320930542,1711715494046,-3215.18783717,0.000619,41]
[320930543,1711715494056,-1041.92,0.00061956,2]
[320930544,1711715494064,-1009.3,0.00061975,120]
[320930545,1711715494074,-251.866026,0.00061999,120]
[320930546,1711715494085,-100000.0,0.00062,62]
[320930547,1711715494095,-541.5810525,0.00062,120]
[320930548,1711715494104,-150.0,0.00062,120]
[320930549,1711715494113,-250.0,0.00062,120]
[320930550,1711715494122,-773.0,0.00062,60]
[320930551,1711715494131,-180.71,0.00062,30]
[320930552,1711715494140,-460.0,0.00062,117]
[320930553,1711715494149,-3088.37126978,0.00062011,120]
[320930554,1711715494159,-1934.20250452,0.00062011,120]
[320930555,1711715494169,-787.03857535,0.00062011,120]
[320930556,1711715494178,-1830.81952713,0.00062011,120]
[320930557,1711715494187,-157.032919,0.00062148,120]
[320930558,1711715494196,-152.0,0.00062277,6]
[320930559,1711715494205,-275.424261,0.00062277,5]
[320930560,1711715494215,-157.032921,0.00062348,120]
[320930561,1711715494224,-160.0,0.0006235,28]
[320930562,1711715494234,-151.0,0.00062356,120]
[320930563,1711715494245,-157.032911,0.00062448,119]
[320930564,1711715494254,-1412.38,0.00062465,120]
[320930565,1711715494263,-308.43333333,0.00062466,120]
[320930566,1711715494272,-2000.0,0.000625,120]
[320930567,1711715494281,-250.0,0.000625,120]
[320930568,1711715494290,-446.0,0.000625,40]
[320930569,1711715494299,-500.0,0.000625,120]
[320930570,1711715494308,-460.0,0.000625,118]
[320930571,1711715494317,-3088.37126978,0.0006251,120]
[320930572,1711715494327,-1934.20250452,0.0006251,120]
[320930573,1711715494337,-787.03857535,0.0006251,120]
[320930574,1711715494346,-1830.81952713,0.0006251,120]
[320930575,1711715494355,-1009.3,0.0006259,120]
[320930576,1711715494365,-150.0,0.0006263,120]
[320930577,1711715494374,-162.295179,0.00062636,120]
[320930578,1711715494384,-174.50883,0.00062636,120]
[320930579,1711715494394,-161.795468,0.00062636,120]
[320930580,1711715494403,-184.949118,0.00062636,120]
[320930581,1711715494412,-1000.0,0.000627,120]
[320930582,1711715494421,-161.032921,0.00062748,120]
[320930583,1711715494431,-500.0,0.00062757,36]
[320930584,1711715494440,-151.69724403,0.00062795,93]
[320930585,1711715494449,-100000.0,0.0006287,120]
[320930586,1711715494458,-10169.3734963,0.00063,120]
[320930587,1711715494467,-150.0,0.00063,120]
[320930588,1711715494477,-350.0,0.00063,120]
[320930589,1711715494485,-249.73,0.00063,120]
[320930590,1711715494498,-180.48,0.00063,120]
[320930591,1711715494508,-2000.0,0.00063,120]
[320930592,1711715494517,-308.0,0.00063,120]
[320930593,1711715494525,-460.0,0.00063,119]
[320930594,1711715494534,-3088.37126978,0.00063009,120]
[320930595,1711715494544,-1934.20250452,0.00063009,120]
[320930596,1711715494553,-787.03857535,0.00063009,120]
[320930597,1711715494562,-1830.81952713,0.00063009,120]
[320930598,1711715494571,-677.53380005,0.00063013,120]
[320930599,1711715494580,-240.64720123,0.00063029,120]
[320930600,1711715494589,-308.43333333,0.00063068,120]
[320930601,1711715494598,-157.032919,0.00063148,120]
[320930602,1711715494607,-1412.38,0.00063287,120]
[320930603,1711715494615,-6363.40128288,0.000633,120]
[320930604,1711715494624,-157.032921,0.00063348,120]
[320930605,1711715494633,-157.032911,0.00063448,120]
[320930606,1711715494643,-151.0,0.00063479,120]
[320930607,1711715494652,-300.0,0.000635,41]
[320930608,1711715494661,-460.0,0.000635,120]
[320930609,1711715494671,-3088.37126978,0.00063508,120]
[320930610,1711715494680,-1934.20250452,0.00063508,120]
[320930611,1711715494690,-787.03857535,0.00063508,120]
[320930612,1711715494699,-1830.81952713,0.00063508,120]
[320930613,1711715494708,-1044.7644269,0.00063562,120]
[320930614,1711715494717,-1142.57409275,0.00063562,120]
[320930615,1711715494726,-562.49095978,0.00063562,120]
[320930616,1711715494735,-121313.94964935,0.00063562,120]
[320930617,1711715494748,-619.4356845,0.00063562,120]
[320930618,1711715494757,-1501.36,0.00063562,120]
[320930619,1711715494767,-2412.07466891,0.00063562,120]
[320930620,1711715494776,-120193.76268272,0.00063562,120]
[320930621,1711715494785,-155853.19229877,0.00063562,120]
[320930622,1711715494799,-1994.97321588,0.00063562,120]
[320930623,1711715494814,-343.53915486,0.00054795,120]
[320930624,1711715494826,-156.46084514,0.00054795,120]
[320930625,1711715494836,-979.82244926,0.00063562,120]
[320930626,1711715494847,-109781.96469275,0.00063562,120]
[320930630,1711716061267,-155.0,0.00026697,2]
[320930631,1711716061288,-1219.18866587,0.00026697,2]
[320930632,1711716061309,-3067.66199381,0.00026697,2]
[320930633,1711716061329,-10563.15040586,0.00026698,2]
[320930634,1711716061349,-4559.33586381,0.00026699,2]
[320930635,1711716061370,-3594.89899643,0.00026699,2]
[320930636,1711716061390,-361.32165686,0.00026699,2]
[320930637,1711716061414,-155.0,0.00026699,2]
[320930638,1711716061442,-755.0,0.000267,2]
[320930639,1711716061807,2596.06574678,0.00026697,2]
[320930647,1711716234018,155.50573694,0.00026697,2]
[320930648,1711716235886,155.0,0.00026697,2]
[320930649,1711716241905,253.32377221,0.00026697,2]
[320930650,1711716246799,306.77009816,0.00026697,2]
[320930651,1711716248892,513.00954369,0.00026697,2]
[320930652,1711716251012,155.0,0.00026697,2]
[320930654,1711716551162,-518.69024488,0.00028491,2]
[320930667,1711716631940,-284.99900998,0.00028389,2]
[320930668,1711716631949,-68.63080949,0.00028486,2]
[320930669,1711716631961,-2099.73611253,0.00028486,2]
[320930670,1711716631970,-378.5548982,0.00028487,2]
[320930671,1711716631982,-399.83320369,0.00028487,2]
[320930672,1711716631993,-457.52178131,0.00028487,2]
[320930673,1711716632002,-460.16968329,0.00028487,2]
[320930674,1711716633007,-5058.47464413,0.00028487,2]
[320930675,1711716633017,-2056.40088339,0.00028488,2]
[320930676,1711716633027,-5078.92447248,0.00028489,2]
[320930677,1711716633038,-5484.22593338,0.00028489,2]
[320930678,1711716633048,-1000.0,0.00028489,2]
[320930679,1711716633057,-1000.0,0.00028999,2]
[320930680,1711716633067,-559.62274197,0.00032272,4]
[320930681,1711716633077,-184.36,0.00032273,2]
[320930682,1711716633086,-250.0,0.00033,3]
[320930683,1711716633095,-300.0,0.00035,3]
[320930684,1711716633105,-349.74197465,0.00036815,2]
[320930685,1711716633117,-3729.69937735,0.00036815,2]
[320930686,1711716633127,-350.0,0.00037,3]
[320930687,1711716633136,-174.50110303,0.00037947,2]
[320930688,1711716633146,-150.0,0.0003805,3]
[320930689,1711716633155,-9999.99,0.0003805,2]
[320930690,1711716633164,-459.68,0.0003805,30]
[320930691,1711716633174,-3005.669,0.00038051,2]
[320930692,1711716633183,-999.99,0.00038051,2]
[320930693,1711716633193,-499.99,0.00038051,2]
[320930694,1711716633202,-877.47,0.00038051,2]
[320930695,1711716633211,-505.0905,0.00038151,2]
[320930696,1711716633223,-150.99,0.00038151,10]
[320930697,1711716633232,-7465.55,0.00038151,20]
[320930698,1711716633241,-394.16,0.00038151,2]
[320930699,1711716633250,-368.33,0.00038197,2]
[320930700,1711716633259,-5389.05561889,0.00038356,4]
[320930701,1711716633269,-400.0,0.00039,3]
[320930702,1711716633278,-537.92,0.0003958,2]
[320930703,1711716633287,-250.0,0.0003961,112]
[320930704,1711716633297,-789.73316363,0.000397,2]
[320930705,1711716633307,-10000.0,0.00039721,2]
[320930706,1711716633320,-206.84,0.0003977,15]
[320930707,1711716633329,-340.99,0.000401,2]
[320930708,1711716633339,-500.0,0.00040125,2]
[320930709,1711716633348,-150.0,0.00040341,2]
[320930710,1711716633358,-500.0,0.00040341,2]
[320930711,1711716633369,-150.84,0.00040347,2]
[320930712,1711716633379,-200.0,0.00040387,2]
[320930713,1711716633390,-368.33,0.0004046,2]
[320930714,1711716633402,-23900.0,0.00040623,2]
[320930715,1711716633413,-150.0,0.00040972,2]
[320930716,1711716633424,-1345.94735971,0.00041,30]
[320930717,1711716633435,-450.0,0.00041,3]
[320930718,1711716633445,-200.0,0.00041094,2]
[320930719,1711716633455,-250.0,0.00041177,2]
[320930720,1711716633466,-480.66028579,0.00041197,4]
[320930721,1711716633475,-2751.0,0.00041203,120]
[320930722,1711716633484,-715.11,0.00041317,2]
[320930723,1711716633492,-157.41,0.00041555,10]
[320930724,1711716633501,-210.0,0.00041855,5]
[320930725,1711716633511,-206.84,0.00042509,15]
[320930726,1711716633520,-2028.06,0.00042513,2]
[320930727,1711716633531,-200.39349634,0.00042552,8]
[320930728,1711716633541,-165.24873058,0.00042599,8]
[320930729,1711716633550,-3854.59412982,0.00042599,17]
[320930730,1711716633559,-174.50110302,0.00042599,2]
[320930731,1711716633568,-6947.046,0.00042599,30]
[320930732,1711716633577,-151.69724403,0.000426,16]
[320930733,1711716633586,-523.2199425,0.000426,2]
[320930734,1711716633595,-851.77149502,0.000426,2]
[320930735,1711716633605,-1489.93578982,0.000426,2]
[320930736,1711716633617,-418.46230001,0.000426,2]
[320930737,1711716633636,-3565.32045115,0.000426,2]
[320930738,1711716633648,-13797.13850074,0.000426,2]
[320930739,1711716633657,-251.60561886,0.000426,2]
[320930740,1711716633667,-15313.59332542,0.000426,2]
[320930741,1711716633676,-376.47380885,0.000426,2]
[320930742,1711716633685,-342.5751662,0.000426,2]
[320930743,1711716633694,-1035.22409364,0.000426,19]
[320930744,1711716633703,-1342.83520189,0.000426,2]
[320930745,1711716633712,-1122.45389364,0.000426,2]
[320930746,1711716633721,-424.72957603,0.00042676,4]
[320930747,1711716633730,-1354.02,0.00042689,2]
[320930748,1711716633739,-1354.02,0.00042689,2]
[320930749,1711716633748,-1354.02,0.00042689,2]
[320930750,1711716633757,-1354.02,0.00042689,2]
[320930751,1711716633766,-1354.02,0.00042689,2]
[320930752,1711716633775,-159.95,0.0004269,2]
[320930753,1711716633784,-430.87012157,0.00042697,4]
[320930754,1711716633793,-2593.16983862,0.00042697,4]
[320930755,1711716633802,-203.27006252,0.00042697,4]
[320930756,1711716633811,-2136.29732206,0.00042697,4]
[320930757,1711716633820,-2138.31720221,0.00042697,4]
[320930758,1711716633830,-225.78740412,0.00042697,4]
[320930759,1711716633839,-155.0,0.00042697,4]
[320930760,1711716633848,-301.76019222,0.00042697,4]
[320930761,1711716633857,-294.88193264,0.00042697,4]
[320930762,1711716633866,-1215.97323263,0.00042698,4]
[320930763,1711716633875,-800599.69245755,0.00042699,4]
[320930764,1711716633886,-2764.3441739,0.00042699,4]
[320930765,1711716633897,-950.0,0.00042699,4]
[320930766,1711716633913,-2719.05049637,0.00042699,4]
[320930770,1711716637904,-570.28642143,0.00028491,2]
[320930771,1711716637916,-298.53007006,0.00028491,2]
[320930772,1711716637927,-12887.2769538,0.00028491,2]
[320930773,1711716637938,-395.74000003,0.00028491,2]
[320930774,1711716637970,-1530.94257437,0.00028491,2]
[320930775,1711716637981,-1584.18048376,0.00028491,2]
[320930776,1711716637993,-2771.13259211,0.00028491,2]
[320930777,1711716638009,-922.68464113,0.00028491,2]
[320930778,1711716638339,-3601.44902715,0.00028491,2]
[320930779,1711716638350,-2332.16004517,0.00042698,2]
[320930780,1711716638367,-269.74,0.00042698,2]
[320930781,1711716638381,-1465.62805132,0.00042698,2]
[320930782,1711716638396,-232.2242192,0.00042698,2]
[320930783,1711716638410,-27804.9257808,0.00042699,4]
[320930784,1711716638435,-529.12011047,0.00042699,4]
[320930785,1711716638448,-677.49956261,0.00042699,4]
[320930786,1711716638498,-211265.3960249,0.00042699,4]
[320930787,1711716638510,-2558590.05338889,0.000427,30]
[320930788,1711716638521,-320.77,0.000427,7]
[320930789,1711716638532,-180.76,0.000427,7]
[320930790,1711716638544,-368.33,0.00042724,2]
[320930791,1711716638555,-18000.0,0.00042766,30]
[320930792,1711716638566,-508.062287,0.00042766,3]
[320930794,1711716638576,-1968393.52750829,0.00042766,7]
[320930796,1711716638585,-1135.01673507,0.00042766,2]
[320930798,1711716638595,-3032.60583471,0.00044,14]
[320930800,1711716638606,-3854.59412973,0.00044772,19]
[320930802,1711716638616,-158.503816,0.00044894,30]
[320930804,1711716638627,-368.33,0.00044988,2]
[320930806,1711716638638,-851.77149494,0.00045078,2]
[320930808,1711716638648,-19270.85704163,0.00045078,2]
[320930811,1711716638660,-206.84,0.00045249,15]
[320930813,1711716638671,-1023.94,0.00045397,2]
[320930815,1711716638682,-1023.94,0.00045409,2]
[320930817,1711716638693,-155.0,0.00045415,7]
[320930818,1711716638703,-1023.94,0.00045421,2]
[320930819,1711716638713,-1023.94,0.00045433,2]
[320930820,1711716638726,-1023.94,0.00045445,2]
[320930821,1711716638737,-1023.94,0.00045457,2]
[320930823,1711716638748,-1023.94,0.00045469,2]
[320930824,1711716638758,-1023.94,0.00045481,2]
[320930825,1711716638768,-1023.94,0.00045493,2]
[320930826,1711716638777,-1023.94,0.00045505,2]
[320930827,1711716638787,-1023.94,0.00045517,2]
[320930828,1711716638800,-1023.94,0.00045529,2]
[320930829,1711716638812,-1023.94,0.00045541,2]
[320930830,1711716638824,-1023.94,0.00045553,2]
[320930831,1711716638834,-1023.94,0.00045565,2]
[320930832,1711716638845,-152.22649186,0.00045573,30]
[320930833,1711716638857,-1023.94,0.00045576,2]
[320930834,1711716638869,-1023.94,0.00045588,2]
[320930835,1711716638879,-1023.94,0.000456,2]
[320930836,1711716638890,-1023.94,0.00045612,2]
[320930837,1711716638900,-1023.94,0.00045624,2]
[320930838,1711716638910,-200.0,0.00045947,30]
[320930839,1711716638920,-342.57516618,0.00046583,2]
[320930840,1711716638931,-229.89580405,0.00046845,4]
[320930841,1711716638941,-3854.59412973,0.00046945,22]
[320930842,1711716638952,-368.33,0.00047252,2]
[320930843,1711716638962,-851.77149494,0.00047556,2]
[320930844,1711716638976,-19270.85704163,0.00047556,2]
[320930845,1711716638986,-206.84,0.00047989,15]
[320930846,1711716638996,-267.31111111,0.00048,120]
[320930847,1711716639007,-150.0,0.00048418,2]
[320930848,1711716639017,-267.31111111,0.00048603,120]
[320930849,1711716639029,-1150094.33505459,0.00049,2]
[320930850,1711716639044,-584807.3712482,0.00049,2]
[320930851,1711716639055,-3854.59412973,0.00049117,25]
[320930852,1711716639066,-267.31111111,0.00049205,120]
[320930853,1711716639077,-13038.1496,0.00049213,2]
[320930854,1711716639088,-2319.6765,0.00049213,2]
[320930855,1711716639098,-5388.5848,0.00049213,2]
[320930856,1711716639109,-1611.1041,0.00049213,2]
[320930857,1711716639119,-162.7547,0.00049213,2]
[320930858,1711716639128,-1000.0,0.0004929,2]
[320930859,1711716639137,-283.65219958,0.00049311,4]
[320930860,1711716639147,-214.80646049,0.00049311,4]
[320930861,1711716639157,-500.0,0.00049315,120]
[320930862,1711716639167,-500.0,0.00049315,120]
[320930863,1711716639178,-500.0,0.00049315,120]
[320930864,1711716639188,-500.0,0.00049315,120]
[320930865,1711716639199,-500.0,0.00049315,120]
[320930866,1711716639210,-500.0,0.00049315,120]
[320930867,1711716639223,-500.0,0.00049315,120]
[320930868,1711716639234,-500.0,0.00049315,120]
[320930869,1711716639244,-500.0,0.00049315,120]
[320930870,1711716639254,-504.45669009,0.00049315,120]
[320930871,1711716639265,-500.0,0.00049315,120]
[320930872,1711716639275,-500.0,0.00049315,30]
[320930873,1711716639286,-500.0,0.00049315,120]
[320930874,1711716639297,-500.0,0.00049315,2]
[320930875,1711716639308,-500.0,0.00049315,120]
[320930876,1711716639319,-300.0,0.00049315,120]
[320930877,1711716639335,-500.0,0.00049315,120]
[320930878,1711716639345,-500.0,0.00049315,120]
[320930879,1711716639355,-557.81,0.00049315,120]
[320930880,1711716639365,-539.53,0.00049315,120]
[320930881,1711716639377,-500.0,0.00049315,120]
[320930882,1711716639387,-545.98,0.00049315,120]
[320930883,1711716639398,-500.0,0.00049315,120]
[320930884,1711716639410,-500.0,0.00049315,120]
[320930885,1711716639420,-638.22,0.00049315,120]
[320930886,1711716639430,-483.04418171,0.00049315,120]
[320930887,1711716639441,-535.67606392,0.00049315,120]
[320930888,1711716639451,-500.0,0.00049315,120]
[320930889,1711716639460,-500.0,0.00049315,120]
[320930890,1711716639473,-150.0,0.00049315,120]
[320930891,1711716639483,-545.20741467,0.00049315,120]
[320930892,1711716639493,-647.43,0.00049315,120]
[320930893,1711716639503,-500.0,0.00049315,120]
[320930894,1711716639513,-500.0,0.00049315,120]
[320930895,1711716639523,-500.0,0.00049315,120]
[320930896,1711716639533,-500.0,0.00049315,120]
[320930897,1711716639543,-500.0,0.00049315,120]
[320930898,1711716639552,-500.0,0.00049315,120]
[320930899,1711716639562,-500.0,0.00049315,120]
[320930900,1711716639573,-500.0,0.00049315,120]
[320930901,1711716639583,-500.0,0.00049315,120]
[320930902,1711716639593,-500.0,0.00049315,120]
[320930903,1711716639603,-500.0,0.00049315,120]
[320930904,1711716639613,-500.0,0.00049315,120]
[320930905,1711716639623,-500.0,0.00049315,120]
[320930906,1711716639633,-503.74536041,0.00049315,120]
[320930908,1711716639643,-500.0,0.00049315,120]
[320930909,1711716639654,-592.15,0.00049315,120]
[320930910,1711716639664,-500.0,0.00049315,120]
[320930911,1711716639674,-500.0,0.00049315,120]
[320930912,1711716639684,-500.0,0.00049315,120]
[320930913,1711716639694,-500.0,0.00049315,120]
[320930915,1711716639704,-500.0,0.00049315,120]
[320930916,1711716639714,-317.77309168,0.00049315,120]
[320930917,1711716639725,-500.0,0.00049315,120]
[320930918,1711716639735,-500.0,0.00049315,120]
[320930919,1711716639745,-500.0,0.00049315,120]
[320930920,1711716639755,-500.0,0.00049315,120]
[320930921,1711716639766,-500.0,0.00049315,120]
[320930922,1711716639776,-500.0,0.00049315,120]
[320930923,1711716639786,-500.0,0.00049315,80]
[320930924,1711716639796,-500.0,0.00049315,120]
[320930925,1711716639806,-452.01244998,0.00049315,120]
[320930926,1711716639817,-1782.96,0.00049315,120]
[320930928,1711716639827,-500.0,0.00049315,120]
[320930929,1711716639838,-500.0,0.00049315,2]
[320930930,1711716639848,-500.0,0.00049315,120]
[320930931,1711716639858,-500.0,0.00049315,120]
[320930932,1711716639868,-903.7,0.00049315,120]
[320930933,1711716639879,-500.0,0.00049315,120]
[320930934,1711716639889,-606.26,0.00049315,120]
[320930935,1711716639899,-1141.6,0.00049315,120]
[320930936,1711716639909,-500.0,0.00049315,120]
[320930937,1711716639920,-468.6556519,0.00049315,120]
[320930938,1711716639930,-809.83,0.00049315,120]
[320930939,1711716639940,-502.1,0.00049315,120]
[320930940,1711716639950,-4769.79,0.00049315,120]
[320930941,1711716639961,-650.47,0.00049315,120]
[320930942,1711716639972,-500.0,0.00049315,120]
[320930943,1711716639982,-500.0,0.00049315,120]
[320930944,1711716639993,-500.0,0.00049315,120]
[320930945,1711716640003,-500.0,0.00049315,120]
[320930946,1711716640014,-500.0,0.00049315,120]
[320930947,1711716640024,-500.0,0.00049315,120]
[320930948,1711716640034,-500.0,0.00049315,120]
[320930949,1711716640044,-528.43,0.00049315,120]
[320930950,1711716640055,-500.0,0.00049315,120]
[320930951,1711716640064,-500.0,0.00049315,120]
[320930952,1711716640075,-500.0,0.00049315,120]
[320930953,1711716640085,-534.25,0.00049315,21]
[320930954,1711716640096,-500.0,0.00049315,120]
[320930955,1711716640106,-500.0,0.00049315,120]
[320930956,1711716640116,-500.0,0.00049315,120]
[320930957,1711716640127,-500.0,0.00049315,120]
[320930958,1711716640137,-500.0,0.00049315,120]
[320930959,1711716640148,-1337.23,0.00049315,120]
[320930960,1711716640158,-500.0,0.00049315,120]
[320930961,1711716640168,-500.0,0.00049315,120]
[320930962,1711716640179,-576.41,0.00049315,120]
[320930963,1711716640189,-527.12,0.00049315,120]
[320930964,1711716640199,-935.52,0.00049315,120]
[320930965,1711716640209,-500.0,0.00049315,120]
[320930966,1711716640221,-609.11,0.00049315,120]
[320930967,1711716640231,-500.0,0.00049315,120]
[320930968,1711716640241,-500.0,0.00049315,120]
[320930969,1711716640251,-500.0,0.00049315,120]
[320930970,1711716640261,-500.0,0.00049315,120]
[320930971,1711716640272,-453.18482206,0.00049315,120]
[320930972,1711716640282,-500.0,0.00049315,120]
[320930973,1711716640293,-500.0,0.00049315,120]
[320930974,1711716640303,-500.0,0.00049315,120]
[320930975,1711716640315,-531.05,0.00049315,120]
[320930976,1711716640326,-500.0,0.00049315,120]
[320930977,1711716640336,-500.0,0.00049315,120]
[320930978,1711716640347,-500.0,0.00049315,120]
[320930979,1711716640358,-500.0,0.00049315,120]
[320930980,1711716640368,-500.0,0.00049315,120]
[320930981,1711716640378,-731.96,0.00049315,120]
[320930982,1711716640389,-1000.44,0.00049315,60]
[320930983,1711716640400,-500.0,0.00049315,120]
[320930984,1711716640410,-1153.11,0.00049315,120]
[320930985,1711716640421,-500.0,0.00049315,120]
[320930986,1711716640432,-500.0,0.00049315,120]
[320930987,1711716640442,-999.05,0.00049315,120]
[320930988,1711716640452,-999.22,0.00049315,120]
[320930989,1711716640462,-500.0,0.00049315,120]
[320930990,1711716640474,-500.0,0.00049315,120]
[320930991,1711716640484,-500.0,0.00049315,120]
[320930992,1711716640494,-500.0,0.00049315,120]
[320930993,1711716640504,-500.0,0.00049315,120]
[320930994,1711716640514,-500.0,0.00049315,120]
[320930995,1711716640524,-1603.08,0.00049315,120]
[320930996,1711716640533,-500.0,0.00049315,120]
[320930997,1711716640543,-641.15,0.00049315,120]
[320930998,1711716640553,-500.0,0.00049315,120]
[320930999,1711716640564,-500.0,0.00049315,120]
[320931000,1711716640574,-500.0,0.00049315,120]
[320931001,1711716640584,-500.0,0.00049315,120]
[320931002,1711716640594,-500.0,0.00049315,120]
[320931003,1711716640604,-500.0,0.00049315,120]
[320931004,1711716640614,-616.6,0.00049315,120]
[320931005,1711716640623,-500.0,0.00049315,120]
[320931006,1711716640633,-500.0,0.00049315,120]
[320931007,1711716640644,-500.0,0.00049315,120]
[320931008,1711716640653,-416.52080791,0.00049315,120]
[320931009,1711716640663,-500.0,0.00049315,120]
[320931010,1711716640673,-500.0,0.00049315,120]
[320931011,1711716640684,-1045.1,0.00049315,120]
[320931012,1711716640694,-500.0,0.00049315,120]
[320931013,1711716640704,-500.0,0.00049315,120]
[320931014,1711716640714,-500.0,0.00049315,120]